Cogmind - Beta 17 @@@ ROGUE MODE // 2026.06.25 @ 16:30:09 Player: Cynthion21x Result: Destroyed by OM-6H8(R) with Subdweller Beam Cannon Performance ------------- Evolutions (0) 0 Regions Visited (2) 400 Robots Destroyed (8) 40 Value Destroyed (314) 314 Prototype IDs (0) 0 Alien Tech Used (0) 0 Bonus (0) 0 TOTAL SCORE: 754 Bonus ------- None Cogmind --------- Core Integrity 0/250 Matter 184/300 Energy 199/200 System Corruption 0% Temperature Cool (9) Movement Rolling (110) Location -10/Subcaves Parts ------- > --- POWER (1) -------- Subdweller Power Source > --- PROPULSION (2) --- Subdweller Monowheel > --- UTILITY (2) ------ Subdweller Optics Utility Shielding > --- WEAPON (2) ------- Light Assault Rifle > --- INVENTORY (5) ---- Light Ion Engine Subdweller Power Source Wheel Subdweller Optics Riot Gun Peak State ------------ > --- POWER ------------ Subdweller Power Source > --- PROPULSION ------- Subdweller Monowheel Subdweller Monowheel > --- UTILITY ---------- Subdweller Optics Subdweller Optics > --- WEAPON ----------- Light Assault Rifle Battle Cannon > --- INVENTORY -------- Light Ion Engine Subdweller Power Source Wheel Utility Shielding [Rating: 13] Favorites ----------- Power Subdweller Power Source Engine Subdweller Power Source Propulsion Subdweller Monowheel Leg Aluminum Leg Wheel Subdweller Monowheel Utility Utility Shielding Device Subdweller Optics Protection Utility Shielding Weapon Light Assault Rifle Ballistic Gun Light Assault Rifle Ballistic Cannon Battle Cannon Launcher Grenade Launcher Special Weapon Mining Laser Build | -11 -10 -10 ------- Run | Yrd Mat Sub Slots Evolved . | . . . Power . | . . . Propulsion . | . . . Utility . | . . . Weapon . | . . . Parts Attached 22 | 5 6 11 Power 4 | 1 . 3 Engine 4 | 1 . 3 Core . | . . . Reactor . | . . . Propulsion 7 | 2 2 3 Treads . | . . . Leg 2 | . 2 . Wheel 5 | 2 . 3 Hover . | . . . Flight . | . . . Utility 4 | . 2 2 Device 3 | . 1 2 Storage . | . . . Processor . | . . . Hackware . | . . . Protection 1 | . 1 . Artifact . | . . . Weapon 7 | 2 2 3 Energy Gun . | . . . Energy Cannon . | . . . Ballistic Gun 2 | 2 . . Ballistic Cannon 1 | . . 1 Launcher 1 | . . 1 Special Weapon 3 | . 2 1 Impact Weapon . | . . . Slashing Weapon . | . . . Piercing Weapon . | . . . Special Melee Weapon . | . . . Unidentified Prototypes . | . . . Parts Lost 7 | . . 7 Power . | . . . Propulsion 1 | . . 1 Utility 1 | . . 1 Weapon 5 | . . 5 Highest Loss Streak 4 | . . 4 To Critical Strikes . | . . . Average Backups 2 | 1 3 3 Power 1 | . . 1 Propulsion . | 1 1 . Utility . | . . . Weapon . | . 1 . Tool/Special . | . . . Unused Backups 3 | . . 3 Power . | . . . Propulsion 2 | . . 2 Utility . | . . . Weapon 1 | . . 1 Tool/Special . | . . . Average Slot Usage (%) 90 | . 88 90 Engine 14 | . 14 14 Leg 7 | . 15 5 Wheel 20 | . 12 22 Device 9 | . 6 9 Protection 13 | . 10 14 Ballistic Gun 12 | . 15 12 Ballistic Cannon 5 | . . 6 Launcher 1 | . . 2 Special Weapon 4 | . 12 2 Peak Build Rating 13 | 5 7 13 Average Rating 8 | 3 6 9 On Entrance 4 | . 5 7 Avg Prop Armor Cover (%) . | . . . Naked Turns . | . . . Heaviest Build 12 | 6 7 12 Greatest Support 40 | 20 20 40 Greatest Overweight (x) . | . . . Average Overweight (x) . | . . . Largest Inventory Capacity 5 | 5 5 5 Average Capacity 5 | 5 5 5 Most Carried 5 | 4 5 5 Average Carried 3 | 1 3 3 Final Capacity 5 | 5 5 5 Final Carried 5 | 3 3 5 Class Distribution -------------------- 53% | Scavenger-Mutant 46% | Mutant Dominant Class ---------------- Mutant | -10/Materials Scavenger-Mutant | -10/Subcaves Resources | -11 -10 -10 ----------- Run | Yrd Mat Sub Matter Collected 451 | 258 . 193 Remotely . | . . . Salvage Created 180 | 47 . 133 Parts 13 | 2 . 11 Haulers Intercepted . | . . . Recyclers Shooed . | . . . Parts Field Recycled . | . . . Retrieved Matter . | . . . Parts Self-Destructed . | . . . Prevented . | . . . Parts Restored . | . . . Kills | -11 -10 -10 ------- Run | Yrd Mat Sub Combat Hostiles Destroyed 8 | 1 . 7 Guns 3 | 1 . 2 Cannons 3 | . . 3 AOE 2 | . . 2 Classes Destroyed 2 | 1 . 1 Grunt 1 | 1 . . Subdweller 7 | . . 7 Best Kill Streak 2 | 1 . 2 Combat Bots Only 2 | 1 . 2 Max Kills in Single Turn 2 | 1 . 2 Gunslinging . | . . . Exploded 2 | . . 2 Melee . | . . . Uniques/NPCs Destroyed . | . . . Combat | -11 -10 -10 -------- Run | Yrd Mat Sub Hostile Shots Fired 59 | 2 . 57 Missed 19 | 1 . 18 Hits 40 | 1 . 39 Projectile 40 | 1 . 39 Damage Taken 950 | 11 . 939 Core 263 | . . 263 Absorbed by Shields . | . . . Redirected to Shielding 13 | . . 13 Core Remaining (%) 100 | 100 . . Volleys Fired 44 | 2 . 42 Largest 2 | 2 . 2 Hottest 200 | 40 . 200 Shots Fired 58 | 4 . 54 Gun 34 | 4 . 30 Cannon 8 | . . 8 Launcher 6 | . . 6 Special 10 | . . 10 Kinetic 42 | 4 . 38 Thermal 10 | . . 10 Explosive 6 | . . 6 Electromagnetic . | . . . Robot Hit Streak 25 | 4 . 25 Robot Miss Streak 2 | . . 2 Penetration Max . | . . . Secondary Targets . | . . . Shots Hit Robots 46 | 4 . 42 Core Hits 15 | 2 . 13 Critical Kills . | . . . Critical Parts Destroyed . | . . . Critical Strikes 1 | . . 1 Blast 1 | . . 1 Melee Attacks . | . . . Impact . | . . . Slashing . | . . . Piercing . | . . . Sneak Attacks . | . . . Combat Hostiles . | . . . Follow-up Attacks . | . . . Damage Inflicted 869 | 37 . 832 Guns 254 | 37 . 217 Cannons 178 | . . 178 Explosions 293 | . . 293 Melee . | . . . Ramming . | . . . Kinetic 432 | 37 . 395 Thermal 144 | . . 144 Explosive 293 | . . 293 Electromagnetic . | . . . Impact . | . . . Slashing . | . . . Piercing . | . . . Highest Corruption . | . . . Average Corruption . | . . . Corruption Purged . | . . . Corruption Blocked . | . . . Overload Shots . | . . . Overflow Damage 13 | . . 13 Projectiles . | . . . Explosions 13 | . . 13 Melee . | . . . Knockbacks . | . . . Impact . | . . . Kinetic . | . . . Secondary . | . . . Self-Inflicted Damage 65 | . . 65 Shots 3 | . . 3 Rammed . | . . . Targets Rammed . | . . . Kicked . | . . . Crushed . | . . . Highest Temperature 6 | 6 . . Average Temperature 6 | 6 . . Received Heat Transfer 120 | 6 . 114 Siege Activations . | . . . Martial Activations . | . . . Shielding Activations . | . . . Robots Disrupted . | . . . Combat Hostiles . | . . . Robots Corrupted . | . . . Combat Hostiles . | . . . Parts Fried . | . . . Impact Corruptions . | . . . Robots Melted . | . . . Combat Hostiles . | . . . Parts Melted . | . . . Heat Transferred 300 | . . 300 Parts Sabotaged . | . . . Parts Stolen . | . . . Parts Stripped . | . . . Power Chain Reactions . | . . . Alert | -11 -10 -10 ------- Run | Yrd Mat Sub Maximum Alert Level . | . . . Low Security (%) 100 | 100 100 . Level 1 . | . . . Level 2 . | . . . Level 3 . | . . . Level 4 . | . . . Level 5 . | . . . High Security . | . . . Max Security . | . . . Peak Influence 20 | 20 13 . Initial 13 | . 13 . Average 3 | 3 3 . Influence Increases 20 | 20 . . Destroy 0b10 Robot/C 20 | 20 . . Influence Decreases 20 | . 20 . Entered New Map 7 | . 7 . Time Decay 13 | . 13 . Squads Dispatched . | . . . Investigation . | . . . Extermination . | . . . Reinforcement . | . . . Assault . | . . . Garrison . | . . . Intercept . | . . . Searches Triggered . | . . . Construction Impeded . | . . . Haulers Reinforced . | . . . Active Scanning Responses . | . . . Cargo Convoy Interrupts . | . . . Stealth | -11 -10 -10 --------- Run | Yrd Mat Sub Distress Signals . | . . . Communications Jammed . | . . . Distress Signals . | . . . Times Spotted 10 | 1 . 9 Peak Tracking Total 3 | 1 . 3 Tactical Retreats . | . . . Traps | -11 -10 -10 ------- Run | Yrd Mat Sub Traps Triggered . | . . . Indirectly . | . . . Trap Hack Attempts . | . . . Triggered . | . . . Disarmed . | . . . Reprogrammed . | . . . Reused . | . . . Traps Extracted . | . . . Installed . | . . . Triggered . | . . . Machines | -11 -10 -10 ---------- Run | Yrd Mat Sub Machines Disabled . | . . . Max in Single Turn . | . . . Machines Repaired . | . . . Machines Dismantled . | . . . Machines Sabotaged . | . . . Overloaded Fab Kills . | . . . Hacking | -11 -10 -10 --------- Run | Yrd Mat Sub Machines Accessed . | . . . Terminals . | . . . Fabricators . | . . . Repair Stations . | . . . Recycling Units . | . . . Scanalyzers . | . . . Garrison Access . | . . . Total Hacks . | . . . Successful . | . . . Failed . | . . . Catastrophic . | . . . Database Lockouts . | . . . Manual . | . . . Terminals . | . . . Fabricators . | . . . Repair Stations . | . . . Recycling Units . | . . . Scanalyzers . | . . . Garrison Access . | . . . Terminal Hacks . | . . . Fabricator Hacks . | . . . Repair Station Hacks . | . . . Recycling Unit Hacks . | . . . Scanalyzer . | . . . Garrison Access Hacks . | . . . Unauthorized Hacks . | . . . Terminals . | . . . Fabricators . | . . . Repair Stations . | . . . Recycling Units . | . . . Scanalyzers . | . . . Garrison Access . | . . . Data Cores Recovered . | . . . Used . | . . . Hacking Detections . | . . . Full Trace Events . | . . . Feedback Events . | . . . Feedback Blocked . | . . . Robot Schematics Acquired . | . . . Robots Built . | . . . Authchips . | . . . Time . | . . . Total Robot Build Rating . | . . . Part Schematics Acquired . | . . . Parts Built . | . . . Authchips . | . . . Time . | . . . Total Part Build Rating . | . . . Part Studies Acquired . | . . . Parts Repaired . | . . . Time . | . . . Parts Recycled . | . . . Recycled Matter . | . . . Retrieved Matter . | . . . Retrieved Components . | . . . Parts Scanalyzed . | . . . Part Schematics Acquired . | . . . Parts Damaged . | . . . Bothacking | -11 -10 -10 ------------ Run | Yrd Mat Sub Used RIF Installer . | . . . Robots Hacked . | . . . Non-combat . | . . . Combat . | . . . Robot Hacks Applied . | . . . Relay Couplers Released . | . . . Fabnet Peak Effective % . | . . . Robots Rewired . | . . . Allies Hacked . | . . . Hacks Repelled . | . . . Allies | -11 -10 -10 -------- Run | Yrd Mat Sub Total Allies . | . . . Largest Group . | . . . Highest-Rated Group . | . . . Highest-Rated Ally . | . . . Total Orders . | . . . Ally Attacks . | . . . Total Damage . | . . . Kills . | . . . Allies Corrupted . | . . . Allies Melted . | . . . Intel | -11 -10 -10 ------- Run | Yrd Mat Sub Active Infowar (turns) 229 | . . 229 Optics 229 | . . 229 Robot Analysis Total . | . . . Derelict Logs Recovered . | . . . Drone Launches . | . . . Drone Recoveries . | . . . Exploration | -11 -10 -10 ------------- Run | Yrd Mat Sub Turns Passed 613 | 59 80 474 Spaces Moved 432 | 64 71 297 Core 35 | 35 . . Treads . | . . . Legs 55 | . 31 24 Wheels 342 | 29 40 273 Hover . | . . . Flight . | . . . Fastest Speed 50 | 50 80 95 Average Speed 99 | 63 97 108 Slowest Speed 120 | 80 120 120 Overloaded Moves . | . . . Propulsion Burnouts . | . . . Robots Hopped . | . . . Potential Cave-ins . | . . . Cave-ins Triggered . | . . . Exploration Rate (%) 16 | 8 13 27 Regions Visited 2 Branch Regions 1 Pre-discovered Areas . | . . . Known Exits Taken . | . . . Unknown Exits Taken 2 | 1 1 . Scrap Searched . | . . . Spaces Dug . | . . . Terrain Destroyed 15 | . . 15 Melee . | . . . Projectile . | . . . AOE 15 | . . 15 Terrain Rammed . | . . . Walls Destroyed . | . . . Machines Disabled . | . . . Actions | -11 -10 -10 --------- Run | Yrd Mat Sub Total 543 | 78 84 381 Wait 7 | . . 7 Move 430 | 63 70 297 Hop . | . . . Pick Up 26 | 8 4 14 Fast Attach . | . . . Attach 18 | 5 6 7 Detach 2 | . 2 . Swap 7 | . . 7 Drop 9 | . 2 7 Fire 44 | 2 . 42 Melee . | . . . Ram . | . . . Kick . | . . . Crush . | . . . Escape Stasis . | . . . Rewire . | . . . Trap . | . . . Miscellaneous . | . . . Route ------- -11/Scrapyard -10/Materials (discovered 2 exits: [*Min] / [*Sub]) -10/Subcaves History --------- Turn | Location | Event 2 | -11/Scrapyard | Met Revision 17 45 | -11/Scrapyard | Discovered new exit (range 8) 60 | -11/Scrapyard | Entered Materials 75 | -10/Materials | Discovered new exit (range 11) 130 | -10/Materials | Discovered new exit (range 10) 140 | -10/Materials | Entered Subcaves 141 | -10/Subcaves | Approached by a straggling Scientist 145 | -10/Subcaves | Ambushed by Subdwellers from Twisted Machinery 224 | -10/Subcaves | Lost 4 parts (1u3w) 270 | -10/Subcaves | A Subdweller sparked back to life 270 | -10/Subcaves | A Subdweller sparked back to life 270 | -10/Subcaves | A Subdweller sparked back to life 284 | -10/Subcaves | Core integrity fell below 50% 301 | -10/Subcaves | Core integrity fell below 20% 307 | -10/Subcaves | Found Prototype Flight Unit 586 | -10/Subcaves | Build established: Scavenger-Mutant 614 | -10/Subcaves | Destroyed by OM-6H8(R) with Subdweller Beam Cannon Last Messages --------------- Acquired 18 matter. Acquired 5 matter. Dropped Broken Sub. Power Source. PU-EBW(R) destroyed. Acquired Sub. Power Source. Acquired 33 matter. Acquired Sub. Optics. Note that some effects don't stack, e.g. attaching both Sub. Optics and Sub. Optics does not combine the two effects (all such effects are marked ). Acquired 3 matter. Acquired Riot Gun. Dropped Battle Cannon. Sub. Optics shoots sparks and powers down. Acquired 7 matter. Acquired 5 matter. Acquired 14 matter. Acquired 15 matter. Sub. Monowheel destroyed. Map ----- +----------------------------------------------------+ | | | | | | | | | | | | | ?????????????????????????????????????????????????? | | ?????????????????????????????????????????????????? | | ?????????????????????????????????????????????????? | | ?????????????????????????????????????????????????? | | ?????????????????????????????????????????????????? | | ?????????????????????????????????????????????????? | | ?????????????????????????????????????????????????? | | ?????????????????????????????????????????????????? | | ?????????????????????????????????????????????????? | | ?????????????????????????????????????????????????? | | ?????????????????????????????????????????????????? | | ?????????????????????????????????????????????????? | | ?????????????????????????????????????????????????? | | ?????????????????????????????????????????????????? | | ?????????????????????????????????????????????????? | | ?????????????? ???#####?###??????????????????????? | | ???????????## ### # ## #??????????????????????? | | ???????????? ##?????????????????????? | | ?????????????? R R ####??????????????????? | | ??????????????? ???# @ # ##?????????????????? | | ???????????????? ??## # #?##??????????????? | | ????????????????? [ ??## ## #??????????????? | | ???????????????? ### #??????????????? | | ???????????????????# ##?????###??????? | | ??????????????????## ##?????# ##?????? | | ??????????# ??#??## ## ####??# #?????? | | ??????????## # ## ## ### ###???? | | ??????????# ## #???? | | ???????????# ###?????? | | ?????????????# # ##??????? | | ?????????????#?# #??????? | | ??????????????# ## ### #?????? | | ?????????????? ?# ##? #?????? | | ?????????????? ### #?? #????? | | ???????????????? ## # ## #??? #????? | | ???????????????????# ### ##???? #????? | | ???????????????????# # #?# ##?????#????? | | ??????????????????## # #?# ###????????? | | ??????????????????# #?# ##???????? | | ??????????????????## ## #?# #???????? | | ??????????????????## #?#] #?## #???? | | ??????????????????# #?# ##### ### #???? | | ???????###????????## ### ### ####??# #???? | | ???????# %#???###### ### ##??????####???? | +----------------------------------------------------+ Best States ------------- Heat Dissipation 35 Energy Generation 15 Energy Capacity 200 Matter Stores 300 Matter Capacity 300 Sight Range 21 Terrain Scan Density 10 Utility Shielding 33 Evasion (%) 55 Item Schematics ----------------- None Robot Schematics ------------------ None Fabricated ------------ Nothing Repaired ---------- Nothing Studied --------- None Alien Tech Used ----------------- None Achievements -------------- Spot Them First Challenges ------------ None Game ------ Seed PulsarAntimissileEdition Manual? 0 Play Time 00:12:34 Cumulative 0.9 hours Start 2026.06.25 @ 16:16:37 End 2026.06.25 @ 16:30:09 Sessions 1 Manual Loads 0 Difficulty Rogue Special Mode None Game No. 5 Rogue 5 Adventurer 0 Explorer 0 Win Type - Total 0 Types 0/0/0/0/0/0/0/0/0/0 Lore% 0 Gallery% 2 Achievement% 2 Wizard Run 0 Options --------- Layout 1 ASCII 0 Keyboard 0 Movement Numpad Keybinds 0 Fullscreen 1 Font 24/X11 Map View 50x35 Zoom Use 0% Tactical HUD 0 Map Filters NONE Filters NONE Steam 1 RUN: e00f2cf1-1dee-4013-bceb-7b0c38ac1c1e